bitfinex/quotes_BTCUSD_20251207
["timestamp","ask_amount","ask_price","bid_price","bid_amount"]
[1765081259876,0.54770287,89711.0,89710.0,0.00112243]
[1765081260081,0.52361631,89711.0,89710.0,0.00112243]
[1765081269734,0.54232387,89711.0,89710.0,0.00112243]
[1765081270244,0.54232529,89711.0,89710.0,0.00112243]
[1765081270946,0.52002529,89711.0,89710.0,0.00112243]
[1765081271151,0.56641185,89711.0,89710.0,0.00112243]
[1765081271352,0.57243575,89711.0,89710.0,0.00112243]
[1765081271532,0.59652231,89711.0,89710.0,0.00112243]
[1765081271902,0.57243575,89711.0,89710.0,0.00112243]
[1765081272107,0.59652231,89711.0,89710.0,0.00112243]
[1765081272556,0.57243575,89711.0,89710.0,0.00112243]
[1765081272717,0.59652231,89711.0,89710.0,0.00112243]
[1765081273337,0.57243575,89711.0,89710.0,0.00112243]
[1765081276032,0.60591858,89711.0,89710.0,0.00112243]
[1765081276282,0.59989468,89711.0,89710.0,0.00112243]
[1765081284670,0.57580812,89711.0,89710.0,0.00112243]
[1765081284884,0.59989305,89711.0,89710.0,0.00112243]
[1765081295308,0.62999922,89711.0,89710.0,0.00112243]
[1765081301781,0.61129166,89711.0,89710.0,0.00112243]
[1765081304083,5.47438549,89711.0,89710.0,0.00112243]
[1765081304287,5.90005275,89711.0,89710.0,0.00112243]
[1765081304510,5.85990848,89711.0,89710.0,0.00112243]
[1765081305221,5.89604671,89711.0,89710.0,0.00112243]
[1765081305403,6.00875177,89711.0,89710.0,0.00112243]
[1765081305605,6.01075177,89711.0,89710.0,0.00112243]
[1765081306387,6.25375177,89711.0,89710.0,0.00112243]
[1765081306620,6.25075177,89711.0,89710.0,0.00112243]
[1765081306822,6.24875177,89711.0,89710.0,0.00112243]
[1765081307032,6.25175177,89711.0,89710.0,0.00112243]
[1765081307242,6.25375177,89711.0,89710.0,0.00112243]
[1765081310291,6.21361354,89711.0,89710.0,0.00112243]
[1765081311379,6.04138549,89711.0,89710.0,0.00112243]
[1765081311801,0.07302345,89711.0,89710.0,0.0100094]
[1765081311922,0.03848283,89711.0,89710.0,0.0182894]
[1765081312121,0.03848283,89711.0,89710.0,0.0100094]
[1765081312336,0.005,89711.0,89710.0,0.04348233]
[1765081312675,0.002,89711.0,89710.0,0.04348233]
[1765081312973,0.03344578,89720.0,89717.0,0.01114615]
[1765081313174,0.0223,89720.0,89717.0,0.01175312]
[1765081313377,0.0223,89720.0,89719.0,0.00045147]
[1765081313629,0.0223,89720.0,89719.0,0.00105844]
[1765081316006,0.0223,89720.0,89719.0,0.00405844]
[1765081316395,0.23404602,89726.0,89720.0,0.01114578]
[1765081316592,0.01114379,89736.0,89728.0,0.01114479]
[1765081316844,0.01114379,89736.0,89733.0,0.01114417]
[1765081317201,0.02312392,89735.0,89732.0,0.01114429]
[1765081317810,0.02343,89734.0,89732.0,0.01114429]
[1765081318211,0.08914394,89733.0,89732.0,0.01114429]
[1765081318431,0.08914394,89733.0,89732.0,0.01175126]
[1765081319105,0.08914394,89733.0,89732.0,0.00060697]
[1765081319544,0.08914394,89733.0,89732.0,0.00360697]
[1765081319749,0.08914394,89733.0,89732.0,0.01175151]
[1765081320129,0.08914394,89733.0,89732.0,0.01375151]
[1765081320557,0.08914394,89733.0,89732.0,0.01475151]
[1765081320720,0.12859983,89733.0,89732.0,0.01414454]
[1765081320922,0.15089983,89733.0,89732.0,0.003]
[1765081322638,0.15089983,89733.0,89732.0,0.001]
[1765081322809,0.22290828,89723.0,89721.0,0.03347211]
[1765081323012,0.027,89722.0,89721.0,0.03347211]
[1765081323250,0.05043,89722.0,89721.0,0.03407908]
[1765081323451,0.07273,89722.0,89721.0,0.00060697]
[1765081323857,0.22293064,89714.0,89713.0,0.03347394]
[1765081324037,0.2722381,89711.0,89710.0,0.0004]
[1765081324476,0.2956681,89711.0,89710.0,0.0004]
[1765081324831,0.2733681,89711.0,89710.0,0.0004]
[1765081326100,0.2733681,89711.0,89710.0,0.0014]
[1765081326280,0.2733681,89711.0,89710.0,0.00200697]
[1765081330521,0.2229381,89711.0,89710.0,0.00200697]
[1765081330890,0.2229381,89711.0,89710.0,0.0027294]
[1765081331163,0.2733681,89711.0,89710.0,0.0027294]
[1765081333752,0.2349181,89711.0,89710.0,0.0027294]
[1765081333914,0.10674394,89712.0,89710.0,0.0027294]
[1765081334117,0.10674394,89712.0,89711.0,0.00060697]
[1765081335309,0.10774394,89712.0,89711.0,0.00060697]
[1765081336000,0.10674394,89712.0,89711.0,0.00060697]
[1765081336249,0.10774394,89712.0,89711.0,0.00060697]
[1765081336613,0.10674394,89712.0,89711.0,0.00260697]
[1765081337150,0.10674394,89712.0,89711.0,0.00360697]
[1765081339392,0.10674394,89712.0,89711.0,0.00429929]
[1765081342272,0.36926955,89712.0,89711.0,0.00429929]
[1765081345164,0.32967955,89712.0,89711.0,0.00429929]
[1765081345315,0.10674394,89712.0,89711.0,0.01257929]
[1765081350487,0.32967955,89712.0,89711.0,0.01257929]
[1765081350641,0.34592955,89712.0,89711.0,0.00429929]
[1765081350825,0.36926955,89712.0,89711.0,0.00429929]
[1765081355002,0.34592955,89712.0,89711.0,0.00429929]
[1765081357820,0.36926955,89712.0,89711.0,0.00429929]
[1765081366868,0.32967955,89712.0,89711.0,0.00429929]
[1765081367964,0.10674394,89712.0,89711.0,0.00429929]
[1765081368785,0.32967955,89712.0,89711.0,0.00429929]
[1765081371400,0.37019955,89712.0,89711.0,0.00429929]
[1765081373510,0.38065193,89712.0,89711.0,0.00429929]
[1765081379372,0.40295193,89712.0,89711.0,0.00429929]
[1765081379568,0.38065193,89712.0,89711.0,0.00429929]
[1765081379973,0.36305193,89712.0,89711.0,0.00429929]
[1765081382500,0.32253193,89712.0,89711.0,0.00429929]
[1765081383769,0.36163193,89712.0,89711.0,0.00429929]
[1765081383965,0.36163193,89712.0,89711.0,0.00369232]
[1765081383966,0.38493782,89712.0,89711.0,0.00369232]
[1765081384602,0.38493782,89712.0,89711.0,0.00269232]
[1765081385142,0.38493782,89712.0,89711.0,0.00069232]
[1765081385839,0.38593782,89712.0,89711.0,0.00069232]
[1765081387321,0.32353193,89712.0,89711.0,0.00129929]
[1765081387522,0.09014394,89712.0,89711.0,0.00129929]
[1765081389023,0.31307955,89712.0,89711.0,0.00129929]
[1765081390142,0.31207955,89712.0,89711.0,0.00329929]
[1765081390349,0.31207955,89712.0,89711.0,0.00429929]
[1765081405900,0.31207955,89712.0,89711.0,0.0265931]
[1765081407436,0.08914394,89712.0,89711.0,0.0265931]
[1765081409940,0.08914394,89712.0,89711.0,0.2495312]
[1765081410139,0.08914394,89712.0,89711.0,0.22723739]
[1765081411640,0.01114628,89716.0,89711.0,0.22723739]
[1765081411641,0.08914394,89719.0,89716.0,0.01114628]
[1765081411825,0.08914394,89719.0,89718.0,0.00048158]
[1765081412026,0.08914394,89719.0,89718.0,0.00108855]
[1765081412231,0.08914394,89719.0,89718.0,0.00936855]
[1765081412944,0.08914394,89719.0,89718.0,0.0211218]
[1765081414366,0.08914394,89719.0,89718.0,0.0221218]
[1765081414901,0.08914394,89719.0,89718.0,0.0138418]
[1765081421345,0.08914394,89719.0,89718.0,0.2367625]
[1765081436084,0.12941394,89719.0,89718.0,0.0138418]
[1765081436310,0.10504394,89719.0,89718.0,0.0138418]
[1765081439475,0.12795394,89719.0,89718.0,0.01323483]
[1765081439758,0.37317216,89719.0,89718.0,0.00148158]
[1765081487789,0.15025394,89719.0,89718.0,0.00148158]
[1765081497808,0.37317216,89719.0,89718.0,0.00148158]
[1765081498226,0.38456216,89719.0,89718.0,0.00148158]
[1765081501514,0.01114566,89721.0,89718.0,0.00208855]
[1765081501717,0.01114566,89721.0,89718.0,0.00160697]
[1765081501718,0.10040394,89719.0,89718.0,0.00160697]
[1765081501951,0.11601394,89719.0,89718.0,0.00160697]
[1765081502178,0.14004394,89719.0,89718.0,0.00160697]
[1765081502389,0.36296216,89719.0,89718.0,0.00160697]
[1765081504329,0.14004394,89719.0,89718.0,0.00160697]
[1765081504474,0.36296216,89719.0,89718.0,0.00160697]
[1765081505250,0.14004394,89719.0,89718.0,0.00160697]
[1765081506421,0.36296216,89719.0,89718.0,0.00160697]
[1765081507344,0.14004394,89719.0,89718.0,0.00160697]
[1765081507820,0.14004394,89719.0,89718.0,0.00208855]
[1765081509293,0.11601394,89719.0,89718.0,0.00208855]
[1765081513254,0.10040394,89719.0,89718.0,0.00208855]
[1765081515594,0.33985216,89719.0,89718.0,0.00208855]
[1765081516027,0.32332216,89719.0,89718.0,0.00208855]
[1765081516766,0.36247216,89719.0,89718.0,0.00208855]
[1765081518624,0.36247216,89719.0,89718.0,0.01323508]
[1765081526434,0.11693394,89719.0,89718.0,0.01323508]
[1765081530411,0.10040394,89719.0,89718.0,0.01323508]
[1765081532321,0.08914394,89719.0,89718.0,0.02151508]
[1765081532875,0.08914394,89719.0,89718.0,0.01323508]
[1765081552933,0.11144394,89719.0,89718.0,0.01323508]
[1765081553295,0.08914394,89719.0,89718.0,0.01323508]
[1765081558713,0.10157394,89719.0,89718.0,0.01323508]
[1765081558928,0.14150394,89719.0,89718.0,0.01323508]
[1765081560823,0.16380394,89719.0,89718.0,0.01323508]
[1765081565616,0.14150394,89719.0,89718.0,0.01323508]
[1765081565820,0.16380394,89719.0,89718.0,0.01323508]
[1765081566002,0.16380394,89719.0,89718.0,0.00208855]
[1765081583301,0.16380394,89719.0,89718.0,0.00148158]
[1765081583500,0.16480983,89719.0,89718.0,0.00148158]
[1765081583701,0.30314087,89719.0,89718.0,0.00148158]
[1765081584120,0.20872472,89719.0,89718.0,0.00148158]
[1765081584699,0.20972472,89719.0,89718.0,0.00148158]
[1765081584894,0.20972472,89719.0,89718.0,0.00048158]
[1765081585114,0.21072472,89719.0,89718.0,0.00048158]
[1765081586335,5.21072472,89719.0,89718.0,0.00048158]
[1765081586681,5.23476972,89719.0,89718.0,0.00048158]
[1765081587814,5.34447478,89719.0,89718.0,0.00048158]
[1765081593373,5.32042978,89719.0,89718.0,0.00048158]
[1765081593742,5.3444516,89719.0,89718.0,0.00048158]
[1765081594373,5.29812978,89719.0,89718.0,0.00048158]
[1765081594612,5.34445023,89719.0,89718.0,0.00048158]
[1765081596792,5.34345023,89719.0,89718.0,0.00048158]
[1765081597129,5.34245023,89719.0,89718.0,0.00048158]
[1765081597343,5.34445023,89719.0,89718.0,0.00048158]
[1765081597830,5.34245023,89719.0,89718.0,0.00048158]
[1765081598132,5.34445023,89719.0,89718.0,0.00048158]
[1765081599801,5.23474517,89719.0,89718.0,0.00048158]
[1765081608695,0.23474517,89719.0,89718.0,0.00048158]
[1765081608997,5.21072472,89719.0,89718.0,0.00048158]
[1765081609180,5.23474517,89719.0,89718.0,0.00048158]
[1765081623331,3.97614517,89719.0,89718.0,0.00048158]
[1765081623888,4.08585023,89719.0,89718.0,0.00048158]
[1765081624221,5.34445023,89719.0,89718.0,0.00048158]
[1765081626826,3.78234517,89719.0,89718.0,0.00048158]
[1765081627028,3.70244517,89719.0,89718.0,0.00048158]
[1765081627600,3.26024517,89719.0,89718.0,0.00048158]
[1765081628282,3.35584517,89719.0,89718.0,0.00048158]
[1765081629254,3.35464517,89719.0,89718.0,0.00048158]
[1765081630032,3.34344517,89719.0,89718.0,0.00048158]
[1765081630236,3.34324517,89719.0,89718.0,0.00048158]
[1765081631050,2.54724517,89719.0,89718.0,0.00048158]
[1765081631254,0.21143928,89719.0,89718.0,0.00048158]
[1765081631550,0.20971883,89719.0,89718.0,0.00048158]
[1765081632854,0.20871883,89719.0,89718.0,0.00048158]
[1765081633353,0.20871883,89719.0,89718.0,0.00148158]
[1765081633854,0.20771883,89719.0,89718.0,0.00148158]
[1765081638130,0.1742453,89719.0,89718.0,0.00148158]
[1765081641081,0.17424062,89719.0,89718.0,0.00148158]
[1765081665307,0.15194062,89719.0,89718.0,0.00148158]
[1765081665562,0.17424062,89719.0,89718.0,0.00148158]
[1765081665808,0.2229381,89711.0,89710.0,0.0004]
[1765081666009,0.56826295,89701.0,89700.0,0.0004]
[1765081666178,1.08920597,89701.0,89700.0,0.0004]
[1765081666337,1.11404597,89701.0,89700.0,0.0004]
[1765081666680,1.14753317,89701.0,89700.0,0.0004]
[1765081666876,3.90033317,89701.0,89700.0,0.0004]
[1765081667543,4.01003823,89701.0,89700.0,0.0004]
[1765081667742,4.15133823,89701.0,89700.0,0.0004]
[1765081668253,4.15233823,89701.0,89700.0,0.0004]
[1765081668772,4.84719823,89701.0,89700.0,0.0004]
[1765081669951,5.81759823,89701.0,89700.0,0.0004]
[1765081671191,5.81759823,89701.0,89700.0,0.00094193]
[1765081671336,5.8175559,89701.0,89700.0,0.00094193]
[1765081673822,0.8175559,89701.0,89700.0,0.00094193]
[1765081674026,5.8175559,89701.0,89700.0,0.00094193]
[1765081674824,2.5148559,89701.0,89700.0,0.00094193]
[1765081675397,2.4925559,89701.0,89700.0,0.00094193]
[1765081676018,2.5046559,89701.0,89700.0,0.00094193]
[1765081676595,2.4464559,89701.0,89700.0,0.00094193]
[1765081676953,2.5898559,89701.0,89700.0,0.00094193]
[1765081677986,2.6164559,89701.0,89700.0,0.00094193]
[1765081678966,2.6644559,89701.0,89700.0,0.00094193]
[1765081680094,2.6633559,89701.0,89700.0,0.00094193]
[1765081680514,2.6410559,89701.0,89700.0,0.00094193]
[1765081680703,0.70785084,89701.0,89700.0,0.00094193]
[1765081680849,0.68383039,89701.0,89700.0,0.00094193]
[1765081681897,0.36083039,89701.0,89700.0,0.00094193]
[1765081682099,0.35043604,89701.0,89700.0,0.00094193]
[1765081684098,0.36082323,89701.0,89700.0,0.00094193]
[1765081690482,0.74634622,89701.0,89700.0,0.00094193]
[1765081690626,5.70776243,89701.0,89700.0,0.00094193]
[1765081690853,1.39696243,89701.0,89700.0,0.00094193]
[1765081691035,1.35446243,89701.0,89700.0,0.00094193]
[1765081691488,0.70676243,89701.0,89700.0,0.00094193]
[1765081691670,1.85976243,89701.0,89700.0,0.00094193]
[1765081691876,1.56976243,89701.0,89700.0,0.00094193]
[1765081692078,1.57176243,89701.0,89700.0,0.00094193]
[1765081692453,0.71076243,89701.0,89700.0,0.00094193]
[1765081692655,2.99546243,89701.0,89700.0,0.00094193]
[1765081692998,3.08130386,89701.0,89700.0,0.00094193]
[1765081693198,3.11130026,89701.0,89700.0,0.00094193]
[1765081693612,4.99510026,89701.0,89700.0,0.00094193]
[1765081693921,4.96510386,89701.0,89700.0,0.00094193]
[1765081694256,4.99510026,89701.0,89700.0,0.00094193]
[1765081694452,4.74020026,89701.0,89700.0,0.00094193]
[1765081695411,4.71020386,89701.0,89700.0,0.00094193]
[1765081696577,4.93890386,89701.0,89700.0,0.00094193]
[1765081696773,0.37792599,89701.0,89700.0,0.00094193]
[1765081697017,0.30707014,89701.0,89700.0,0.00094193]
[1765081697177,0.32937014,89701.0,89700.0,0.00094193]
[1765081697377,0.30707014,89701.0,89700.0,0.00094193]
[1765081697690,0.32937014,89701.0,89700.0,0.00094193]
[1765081697914,0.32537014,89701.0,89700.0,0.00094193]
[1765081698212,0.32637014,89701.0,89700.0,0.00094193]
[1765081698635,0.32637014,89701.0,89700.0,0.0015489]
[1765081698988,0.26383014,89701.0,89700.0,0.0015489]
[1765081700239,0.25344295,89701.0,89700.0,0.0015489]
[1765081705220,0.29374295,89701.0,89700.0,0.0015489]
[1765081708693,0.31604295,89701.0,89700.0,0.0015489]
[1765081724307,0.32647095,89701.0,89700.0,0.0015489]
[1765081730526,0.3264864,89701.0,89700.0,0.0015489]
[1765081740770,0.3041864,89701.0,89700.0,0.0015489]
[1765081743137,0.3264864,89701.0,89700.0,0.00094193]
[1765081743794,0.3041864,89701.0,89700.0,0.00094193]
[1765081743988,5.32749229,89701.0,89700.0,0.00094193]
[1765081744195,5.67454342,89701.0,89700.0,0.00094193]
[1765081746987,0.67454342,89701.0,89700.0,0.00094193]
[1765081747319,5.67454342,89701.0,89700.0,0.00094193]
[1765081748448,5.7045585,89701.0,89700.0,0.00094193]
[1765081748612,5.81426356,89701.0,89700.0,0.00094193]
[1765081750504,5.78424848,89701.0,89700.0,0.00094193]
[1765081752765,5.67454342,89701.0,89700.0,0.00094193]
[1765081754083,5.27334342,89701.0,89700.0,0.00094193]
[1765081754324,5.33474342,89701.0,89700.0,0.00094193]
[1765081755198,0.67454342,89701.0,89700.0,0.00094193]
[1765081755400,5.36694342,89701.0,89700.0,0.00094193]
[1765081755599,5.47664848,89701.0,89700.0,0.00094193]
[1765081755951,5.46344848,89701.0,89700.0,0.00094193]
[1765081756146,0.78424848,89701.0,89700.0,0.00094193]
[1765081756350,5.51004848,89701.0,89700.0,0.00094193]
[1765081757225,0.78424848,89701.0,89700.0,0.00094193]
[1765081757441,5.52964848,89701.0,89700.0,0.00094193]
[1765081758433,5.78424848,89701.0,89700.0,0.00094193]
[1765081759374,5.78871345,89701.0,89700.0,0.00094193]
[1765081762292,0.78871345,89701.0,89700.0,0.00094193]
[1765081762500,5.78871345,89701.0,89700.0,0.00094193]
[1765081762722,5.78868445,89701.0,89700.0,0.00094193]
[1765081766322,0.81869953,89701.0,89700.0,0.00094193]
[1765081766545,5.81869953,89701.0,89700.0,0.00094193]
[1765081767487,5.78868445,89701.0,89700.0,0.00094193]
[1765081767704,5.60958445,89701.0,89700.0,0.00094193]
[1765081768395,5.78868445,89701.0,89700.0,0.00094193]
[1765081769658,6.09420744,89701.0,89700.0,0.00094193]
[1765081770674,6.09320744,89701.0,89700.0,0.00094193]
[1765081770877,6.09520744,89701.0,89700.0,0.00094193]
[1765081771076,6.09720744,89701.0,89700.0,0.00094193]
[1765081774121,5.3078108,89691.0,89690.0,0.0004]
[1765081774330,5.95367638,89691.0,89690.0,0.0004]
[1765081774502,5.97633638,89691.0,89690.0,0.0004]
[1765081774900,3.82420212,89691.0,89690.0,0.0004]
[1765081775602,5.98080212,89691.0,89690.0,0.0004]
[1765081775806,6.09050718,89691.0,89690.0,0.0004]
[1765081776411,6.09050718,89691.0,89690.0,0.0014]
[1765081777122,6.09050718,89691.0,89690.0,0.0004]
[1765081777316,6.13052965,89691.0,89690.0,0.0004]
[1765081777520,1.13352965,89691.0,89690.0,0.0004]
[1765081777685,6.13352965,89691.0,89690.0,0.0004]
[1765081779343,6.09350718,89691.0,89690.0,0.0004]
[1765081779748,6.09350718,89691.0,89690.0,0.00070114]
[1765081780141,6.13352965,89691.0,89690.0,0.00070114]
[1765081780341,6.09350718,89691.0,89690.0,0.00070114]
[1765081780685,1.09350718,89691.0,89690.0,0.00070114]
[1765081780968,6.09350718,89691.0,89690.0,0.00070114]
[1765081783057,6.09351022,89691.0,89690.0,0.00070114]
[1765081783427,5.62911022,89691.0,89690.0,0.00070114]
[1765081783757,5.88111022,89691.0,89690.0,0.00070114]
[1765081784103,0.55838217,89691.0,89690.0,0.00070114]
[1765081784310,0.59828217,89691.0,89690.0,0.00070114]
[1765081784513,0.59381643,89691.0,89690.0,0.00070114]
[1765081785336,0.59281643,89691.0,89690.0,0.00070114]
[1765081785842,0.59081643,89691.0,89690.0,0.00070114]
[1765081786133,0.59081643,89691.0,89690.0,0.00170114]
[1765081799166,0.70052149,89691.0,89690.0,0.00170114]
[1765081800361,0.70152149,89691.0,89690.0,0.00170114]
[1765081800571,0.70152149,89691.0,89690.0,0.00070114]
[1765081800572,5.70152149,89691.0,89690.0,0.00070114]
[1765081800683,5.71168149,89691.0,89690.0,0.00070114]
[1765081800885,5.74168184,89691.0,89690.0,0.00070114]
[1765081801111,3.80878184,89691.0,89690.0,0.00070114]
[1765081801376,1.33137678,89691.0,89690.0,0.00070114]
[1765081801533,0.60195707,89691.0,89690.0,0.00070114]
[1765081801756,0.58535707,89691.0,89690.0,0.00070114]
[1765081801958,0.55799707,89691.0,89690.0,0.00070114]
[1765081802384,0.52381419,89691.0,89690.0,0.00130811]
[1765081802989,0.52181419,89691.0,89690.0,0.00130811]
[1765081803394,0.52181419,89691.0,89690.0,0.00230811]
[1765081804308,0.54483419,89691.0,89690.0,0.00230811]
[1765081805777,0.56713419,89691.0,89690.0,0.00230811]
[1765081806414,0.65289821,89691.0,89690.0,0.00230811]
[1765081806616,0.67519821,89691.0,89690.0,0.00230811]
[1765081807116,0.56713419,89691.0,89690.0,0.00230811]
[1765081807282,0.56713419,89691.0,89690.0,0.00170114]
[1765081809881,0.52723419,89691.0,89690.0,0.00170114]
[1765081810025,0.56713419,89691.0,89690.0,0.00170114]
[1765081813048,0.56713419,89691.0,89690.0,0.00070114]
[1765081813458,0.56886241,89691.0,89690.0,0.00170114]
[1765081813656,0.56713419,89691.0,89690.0,0.00170114]
[1765081813861,0.59116241,89691.0,89690.0,0.00170114]
[1765081814688,0.59116241,89691.0,89690.0,0.00070114]
[1765081815093,0.59116241,89691.0,89690.0,0.00170114]
[1765081819161,0.70086747,89691.0,89690.0,0.00170114]
[1765081819392,0.59116241,89691.0,89690.0,0.00170114]
[1765081831653,0.59118142,89691.0,89690.0,0.00170114]
[1765081834565,2.51378142,89691.0,89690.0,0.00170114]
[1765081834774,2.54726877,89691.0,89690.0,0.00170114]
[1765081835116,2.65697383,89691.0,89690.0,0.00170114]
[1765081835324,2.65697383,89691.0,89690.0,0.00070114]
[1765081835752,2.65897383,89691.0,89690.0,0.00070114]
[1765081836312,2.65797383,89691.0,89690.0,0.00070114]
[1765081836512,2.65997383,89691.0,89690.0,0.00070114]
[1765081836873,2.65897383,89691.0,89690.0,0.00070114]
[1765081837017,2.66097383,89691.0,89690.0,0.00070114]
[1765081838385,6.12389682,89691.0,89690.0,0.00070114]
[1765081846640,6.12389682,89691.0,89680.0,0.0004]
[1765081846882,6.12389682,89691.0,89670.0,0.0004]
[1765081846883,0.63086053,89671.0,89670.0,0.0004]
[1765081847087,4.50669009,89671.0,89670.0,0.0004]
[1765081847295,2.96988414,89671.0,89670.0,0.0004]
[1765081847425,3.02765087,89671.0,89670.0,0.00100245]
[1765081847625,3.13735593,89671.0,89670.0,0.00100245]
[1765081847925,1.65525593,89671.0,89670.0,0.00100245]
[1765081848327,1.54555087,89671.0,89670.0,0.00100245]
[1765081848568,2.40925087,89671.0,89670.0,0.00100245]
[1765081848953,2.24195087,89671.0,89670.0,0.00100245]
[1765081849157,2.24295087,89671.0,89670.0,0.00100245]
[1765081849746,2.74805087,89671.0,89670.0,0.00100245]
[1765081850486,2.74895087,89671.0,89670.0,0.00100245]
[1765081851624,2.77805087,89671.0,89670.0,0.00100245]
[1765081852385,2.72215087,89671.0,89670.0,0.00100245]
[1765081852584,2.79370866,89671.0,89670.0,0.00100245]
[1765081852772,1.23630866,89671.0,89670.0,0.00100245]
[1765081853422,1.09395087,89671.0,89670.0,0.00100245]
[1765081853586,1.21095087,89671.0,89670.0,0.00100245]
[1765081854564,1.66525087,89671.0,89670.0,0.00100245]
[1765081854799,0.90462788,89671.0,89670.0,0.00100245]
[1765081855009,0.92222788,89671.0,89670.0,0.00100245]
[1765081858969,0.93499845,89671.0,89670.0,0.00100245]
[1765081862643,5.93499845,89671.0,89670.0,0.00100245]
[1765081865305,5.93456813,89671.0,89670.0,0.00100245]
[1765081866689,5.92179756,89671.0,89670.0,0.00100245]
[1765081868439,5.95176351,89671.0,89670.0,0.00100245]
[1765081869311,5.92179756,89671.0,89670.0,0.00100245]
[1765081874160,5.89969756,89671.0,89670.0,0.00100245]
[1765081875006,5.92179756,89671.0,89670.0,0.00100245]
[1765081877196,3.82869756,89671.0,89670.0,0.00100245]
[1765081878012,0.92179756,89671.0,89670.0,0.00100245]
[1765081878178,3.49219756,89671.0,89670.0,0.00100245]
[1765081879038,0.92179756,89671.0,89670.0,0.00100245]
[1765081879242,4.74019756,89671.0,89670.0,0.00100245]
[1765081880241,4.95349756,89671.0,89670.0,0.00100245]
[1765081881215,5.69980262,89671.0,89670.0,0.00100245]
[1765081881790,5.69981498,89671.0,89670.0,0.00100245]
[1765081882341,6.03151498,89671.0,89670.0,0.00100245]
[1765081884079,6.09403797,89671.0,89670.0,0.00100245]
[1765081885349,6.0940357,89671.0,89670.0,0.00100245]
[1765081890462,5.63088541,89661.0,89660.0,0.0004]
[1765081890666,5.71114911,89661.0,89660.0,0.0004]
[1765081890903,5.97898911,89661.0,89660.0,0.0004]
[1765081891107,5.9834565,89661.0,89660.0,0.0004]
[1765081891309,6.02349592,89661.0,89660.0,0.0004]
[1765081891527,6.13320098,89661.0,89660.0,0.0004]
[1765081892072,6.13320098,89661.0,89660.0,0.0024]
[1765081892272,6.09316156,89661.0,89660.0,0.0024]
[1765081893156,6.13320098,89661.0,89660.0,0.0024]
[1765081893321,6.09316156,89661.0,89660.0,0.0024]
[1765081894147,6.09416745,89661.0,89660.0,0.0024]
[1765081895289,5.38556745,89661.0,89660.0,0.0024]
[1765081895612,5.55746745,89661.0,89660.0,0.0024]
[1765081895920,5.30576745,89661.0,89660.0,0.0024]
[1765081896080,5.30576745,89661.0,89660.0,0.00270129]
[1765081896483,5.30576745,89661.0,89660.0,1e-08]
[1765081897496,5.31176745,89661.0,89660.0,1e-08]
[1765081899061,6.10016745,89661.0,89660.0,1e-08]
[1765081903428,6.1401315,89661.0,89660.0,1e-08]
[1765081909113,6.14010048,89661.0,89660.0,1e-08]
[1765081910409,6.10013643,89661.0,89660.0,1e-08]
[1765081912174,1.10013643,89661.0,89660.0,1e-08]
[1765081912372,6.10013643,89661.0,89660.0,1e-08]
[1765081915666,6.16022354,89661.0,89660.0,1e-08]
[1765081916217,6.10013643,89661.0,89660.0,1e-08]
[1765081916916,6.16011925,89661.0,89660.0,1e-08]
[1765081917112,6.10013643,89661.0,89660.0,1e-08]
[1765081917261,6.16594299,89661.0,89660.0,1e-08]
[1765081919216,6.10596017,89661.0,89660.0,1e-08]
[1765081919835,5.97395511,89661.0,89660.0,1e-08]
[1765081920030,3.34347396,89661.0,89660.0,1e-08]
[1765081920229,3.28345511,89661.0,89660.0,1e-08]
[1765081920394,5.99625511,89661.0,89660.0,1e-08]
[1765081921043,5.99627077,89661.0,89660.0,1e-08]
[1765081921666,6.05620017,89661.0,89660.0,1e-08]
[1765081922006,2.15054703,89661.0,89660.0,1e-08]
[1765081923905,1.64554703,89661.0,89660.0,1e-08]
[1765081924108,0.92806071,89661.0,89660.0,1e-08]
[1765081924311,0.90562404,89661.0,89660.0,1e-08]
[1765081924808,0.92192404,89661.0,89660.0,1e-08]
[1765081924966,0.90432404,89661.0,89660.0,1e-08]
[1765081925172,0.92192404,89661.0,89660.0,1e-08]
[1765081925575,0.55801815,89661.0,89660.0,1e-08]
[1765081925781,0.57115076,89661.0,89660.0,1e-08]
[1765081926581,0.55355076,89661.0,89660.0,0.00060698]
[1765081926779,0.25342338,89661.0,89660.0,0.00060698]
[1765081926986,0.27102338,89661.0,89660.0,0.00160698]
[1765081927183,0.2606,89661.0,89660.0,0.00460698]
[1765081927584,0.27101731,89661.0,89660.0,0.00460698]
[1765081928355,0.2606,89661.0,89660.0,0.00460698]
[1765081928471,0.2606,89661.0,89660.0,0.01476698]
[1765081929955,0.2606,89661.0,89660.0,0.00460698]
[1765081934867,0.29952,89661.0,89660.0,0.00460698]
[1765081935093,0.32182,89661.0,89660.0,0.00460698]
[1765081937557,0.4157068,89661.0,89660.0,0.00400001]
[1765081938165,0.32282589,89661.0,89660.0,0.00400001]
[1765081938371,0.28191589,89661.0,89660.0,0.00400001]
[1765081938577,0.28390589,89661.0,89660.0,0.00400001]
[1765081938879,0.32282589,89661.0,89660.0,0.00400001]
[1765081939228,0.32282589,89661.0,89660.0,0.00300001]
[1765081939427,0.32282589,89661.0,89660.0,0.00400001]
[1765081939627,0.32282589,89661.0,89660.0,0.00100001]
[1765081939982,0.32282589,89661.0,89660.0,0.00300001]
[1765081940403,0.30052589,89661.0,89660.0,0.00300001]
[1765081946270,0.31092928,89661.0,89660.0,0.00300001]
[1765081947210,0.33322928,89661.0,89660.0,0.00300001]
[1765081950164,0.33323662,89661.0,89660.0,0.00300001]
[1765081951134,0.35723011,89661.0,89660.0,0.00300001]
[1765081955953,0.33493011,89661.0,89660.0,0.00300001]
[1765081956165,0.35723011,89661.0,89660.0,0.00300001]
[1765081957307,0.35723011,89661.0,89660.0,0.00100001]
[1765081957556,0.35723011,89661.0,89660.0,0.00200001]
[1765081957757,0.35723011,89661.0,89660.0,0.00100001]
[1765081962674,0.39263827,89661.0,89660.0,0.00100001]
[1765081962875,0.39266281,89661.0,89660.0,0.00100001]
[1765081965641,5.35725465,89661.0,89660.0,0.00100001]
[1765081966455,5.35725465,89661.0,89660.0,1e-08]
[1765081967002,3.52425465,89661.0,89660.0,1e-08]
[1765081967231,3.16685465,89661.0,89660.0,1e-08]
[1765081967451,3.15685465,89661.0,89660.0,1e-08]
[1765081968205,0.35925465,89661.0,89660.0,1e-08]
[1765081975161,0.33594876,89661.0,89660.0,1e-08]
[1765081975362,0.31263876,89661.0,89660.0,1e-08]
[1765081975834,0.33729876,89661.0,89660.0,1e-08]
[1765081978341,0.33729876,89661.0,89660.0,0.00060698]
[1765081978499,0.35959876,89661.0,89660.0,0.00060698]
[1765081979188,0.35961499,89661.0,89660.0,0.00060698]
[1765081980161,0.35861499,89661.0,89660.0,0.00060698]
[1765081981467,0.35761499,89661.0,89660.0,0.00060698]
[1765081981686,0.35862088,89661.0,89660.0,1e-08]
[1765081981891,5.39165222,89661.0,89660.0,0.00100001]
[1765081982248,5.42167476,89661.0,89660.0,0.00100001]
[1765081982449,5.39165222,89661.0,89660.0,0.00100001]
[1765081983071,5.39165222,89661.0,89660.0,1e-08]
[1765081983268,5.39265222,89661.0,89660.0,1e-08]